[Event "Uruguayan Championship 2022"]
[Site "Montevideo"]
[Date "2022.04.12"]
[Round "5.6"]
[White "Coppola, Claudio"]
[Black "Hoffman, Alejandro"]
[Result "1/2-1/2"]
[ECO "A44"]
[WhiteElo "2285"]
[BlackElo "2403"]
[Annotator "TA"]
[PlyCount "79"]
[EventDate "2022.04.08"]
[EventType "tourn"]
[EventCountry "URU"]
[SourceTitle "playchess.com"]
[Source "ChessBase"]
[SourceQuality "1"]
[TimeControl "40/5400+30:1800+30"]

{[%evp 15,79,57,56,51,54,49,64,44,60,43,48,-43,-44,-45,-38,-36,-40,-61,-82,-58,-4,-8,-8,-34,-46,-43,0,-187,-194,-193,-178,-262,-155,-152,-80,-47,-68,-81,-47,-40,-41,-45,-22,-97,-97,-97,-97,-97,-97,-97,-15,-15,-15,-15,-15,-15,-15,-15,-15,-15,-15,-15,0,-15,0,0]} 1. d4 {[%emt 0:00:02]} c5 {[%emt 0:00:36]} 2. d5 {[%emt 0:00:06]} e5 {[%emt 0:00:34]} 3. e4 {[%emt 0:00:28]} d6 {[%emt 0:00:23]} 4. c4 {[%emt 0:00:12]} Nf6 {[%emt 0:00:51][%cal Bg8f6,Bf6e8,Be8c7][%mdl 32]} 5. Nc3 {[%emt 0:00:06]} Be7 {[%emt 0:00:07]} 6. g3 {[%emt 0:00:18]} O-O {[%emt 0:04:39]} 7. Bg2 {[%emt 0:00:06]} Na6 {[%emt 0:02:24] 7...Nbd7 is becoming the main line.} 8. Nge2 {[%emt 0:00:30]} Ne8 {[%emt 0:01:56]} 9. O-O {[%emt 0:00:21] A56: Czech Benoni.} Bd7 {[%emt 0:02:36]} 10. a3 {[%emt 0:08:04]} Nec7 {[%emt 0:12:45]} 11. f4 {[%emt 0:02:25] aiming for fxe5. White is slightly better.} Bf6 {[%emt 0:05:10]} 12. a4 {[%emt 0:18:44]} Nb4 {[%emt 0:07:17] [#]} 13. Nb5 $146 {[%emt 0:07:26]} ({White should try} 13. f5 $14) ({Predecessor:} 13. f5 b6 14. h4 a6 15. Kh2 Qe7 16. Ng1 b5 17. Nf3 bxc4 18. g4 Bxh4 19. g5 {0-1 (42) Nazaretyan,T (2316)-Hoffmann,A (2185) Chess.com INT 2021}) 13... Nxb5 $1 $15 {[%emt 0:05:00]} 14. axb5 {[%emt 0:00:40]} a6 {[%emt 0:00:24]} 15. bxa6 {[%emt 0:04:56]} b5 {[%emt 0:00:50]} 16. fxe5 {[%emt 0:03:30]} Bxe5 {[%emt 0:00:42]} 17. Bf4 {[%emt 0:00:15]} Qe7 {[%emt 0:23:54]} (17... bxc4 $15 18. Bxe5 dxe5) 18. Bxe5 $11 {[%emt 0:12:46]} Qxe5 {[%emt 0:00:09]} 19. a7 {[%emt 0:00:12]} Qxb2 {[%emt 0:02:44]} 20. Nf4 {[%emt 0:07:35][%cal Of4e6]} bxc4 {[%emt 0:02:51] [#] Strongly threatening ...Qe5.} 21. Qe2 $2 {[%emt 0:05:52]} (21. Ne6 $1 $11 fxe6 22. Rxf8+ Kxf8 23. dxe6) 21... Qd4+ $19 {[%emt 0:10:53]} 22. Qf2 {[%emt 0:01:40]} Qe5 {[%emt 0:01:23]} 23. Ne2 {[%emt 0:07:36]} (23. Kh1 {keeps fighting.}) 23... c3 {[%emt 0:04:42]} (23... Bg4 $19 {Hoping for ...c3.} 24. Nf4 c3) 24. Qf4 $17 {[%emt 0:06:15]} c2 {[%emt 0:01:08]} (24... Qxf4 $142 25. gxf4 c2) 25. Qxe5 {[%emt 0:00:05]} dxe5 {[%emt 0:00:03]} 26. Ra5 {[%emt 0:03:54] Prevents Bb5.} Rfc8 {[%emt 0:08:16]} 27. Rfa1 {[%emt 0:00:09]} c4 {[%emt 0:00:38]} 28. Nc1 {[%emt 0:01:14]} Nd3 {[%emt 0:00:23] And now ...Nc5 would win.} 29. Bf1 {[%emt 0:00:33]} (29. R5a2 $11 {remains equal.}) 29... Nc5 {[%emt 0:00:28] Threatens to win with ...Nb3.} 30. Bxc4 {[%emt 0:04:21] [#]} Nb7 $1 {[%emt 0:00:58]} ({Don't play} 30... Nxe4 31. Bd3 Nd6 32. Ra6 $11) 31. Ba6 {[%emt 0:00:24]} Rxa7 {[%emt 0:00:06]} 32. R5a2 {[%emt 0:00:09]} h5 {[%emt 0:00:46]} ({Better is} 32... f5 $17 33. Bd3 Rxa2 34. Rxa2 Nd6 35. Rxc2 fxe4 36. Rxc8+ Bxc8) 33. Bd3 $11 {[%emt 0:00:42][%csl LRa7,LRc2] The position is equal.} Rxa2 {[%emt 0:00:06]} 34. Rxa2 {[%emt 0:00:02]} Nc5 {[%emt 0:00:54]} 35. Rxc2 {[%emt 0:00:19]} f6 {[%emt 0:00:31]} 36. Rc3 {[%emt 0:01:02]} Kf7 {[%emt 0:00:30]} 37. Bc2 {[%emt 0:00:38]} Ke7 {[%emt 0:00:25]} 38. Nb3 {[%emt 0:00:58]} Kd6 {[%emt 0:00:50]} 39. Nd2 {[%emt 0:02:17]} Bb5 {[%emt 0:00:30]} 40. Kf2 {[%emt 0:02:18] Weighted Error Value: White=0.20 (precise) /Black=0.18 (very precise)} 1/2-1/2

[Event "Uruguayan Championship 2022"]
[Site "Montevideo"]
[Date "2022.04.13"]
[Round "6.1"]
[White "Diaz Hollemaert, Nahuel"]
[Black "Hoffman, Alejandro"]
[Result "0-1"]
[ECO "D37"]
[WhiteElo "2439"]
[BlackElo "2403"]
[Annotator "TA"]
[PlyCount "52"]
[EventDate "2022.04.08"]
[EventType "tourn"]
[EventCountry "URU"]
[SourceTitle "playchess.com"]
[Source "ChessBase"]
[SourceQuality "1"]
[TimeControl "40/5400+30:1800+30"]

{[%evp 19,52,0,45,30,38,27,39,49,30,10,60,0,0,0,0,0,0,-10,-9,-69,-67,-92,-46,-61,0,0,0,0,0,-112,0,-9,-11,-18,-55]} 1. Nf3 {[%emt 0:19:23]} Nf6 {[%emt 0:01:26]} 2. c4 {[%emt 0:04:35]} e6 {[%emt 0:00:28]} 3. Nc3 {[%emt 0:01:03]} d5 {[%emt 0:00:22]} 4. d4 {[%emt 0:00:18]} Be7 {[%emt 0:00:50]} 5. Bf4 {[%emt 0:01:59]} O-O {[%emt 0:00:43]} 6. e3 {[%emt 0:00:05]} c5 {[%emt 0:01:49]} 7. dxc5 {[%emt 0:01:46]} Bxc5 {[%emt 0:00:39]} 8. Qc2 {[%emt 0:04:25]} Nc6 {[%emt 0:00:53]} 9. a3 {[%emt 0:00:31] 9.Rd1 deserves study.} Qa5 {[%emt 0:03:11]} 10. O-O-O {[%emt 0:02:01]} Bd7 {[%emt 0:09:55]} 11. Kb1 {[%emt 0:24:07][%cal Rc4d5] D37: Queen's Gambit Declined: 5 Bf4.} Be7 {[%emt 0:20:34]} 12. g4 {[%emt 0:09:29] g5 is the strong threat.} dxc4 {[%emt 0:22:42]} 13. Bxc4 {[%emt 0:00:35] Strongly threatening g5. White is slightly better.} Rfd8 {[%emt 0:01:43] [#]} 14. h3 $146 {[%emt 0:03:00]} ({Predecessor:} 14. Nd2) 14... Rac8 {[%emt 0:05:05]} (14... Qc5 $11 15. Bd3 h6) 15. Qb3 {[%emt 0:06:03]} (15. g5 $14 Nh5 16. Bd6) 15... Be8 {[%emt 0:12:17]} 16. Be2 {[%emt 0:13:51]} (16. Qxb7 $2 Rb8 $1 {[%mdl 512]} 17. Bxb8 Rxb8 $19) 16... Nd7 {[%emt 0:10:12]} 17. Nd2 {[%emt 0:02:12]} (17. Qxb7 e5 18. Bg3 Rb8 19. Qxc6 Rdc8 20. Qxc8 (20. Nxe5 $2 Nxe5 21. Qxc8 Rxc8 $19) 20... Rxc8 $17) 17... Nc5 {[%emt 0:01:01]} 18. Qc2 {[%emt 0:00:16] Black must now prevent Nc4.} e5 $36 {[%emt 0:02:20][%mdl 2048] Black has good play.} 19. Nc4 {[%emt 0:01:12]} Qc7 $15 {[%emt 0:00:02]} 20. Bh2 {[%emt 0:00:50]} f6 {[%emt 0:00:23] aiming for ...Bg6.} 21. f4 {[%emt 0:00:18]} Bg6 {[%emt 0:00:29]} (21... b5 $1 $15 22. Nxb5 Qb8) 22. f5 {[%emt 0:00:08]} Bf7 {[%emt 0:00:06]} 23. Rxd8+ {[%emt 0:00:39]} Rxd8 {[%emt 0:01:34]} 24. b4 {[%emt 0:01:51] [#]} (24. Rd1 $11 {remains equal.}) 24... Nd7 {[%emt 0:00:56]} (24... b5 $1 $17 25. Nd2 (25. Nxb5 Qb7 $17) 25... Qb6 26. bxc5 Bxc5) 25. Rd1 $11 {[%emt 0:00:43]} Nb6 {[%emt 0:01:52]} (25... Nxb4 $2 26. axb4 Nb6 27. Nxb6 Qxb6 28. Rxd8+ Qxd8 29. b5 $18) 26. Nb5 {[%emt 0:00:56] [#]} Nxc4 $1 {[%emt 0:00:47] Weighted Error Value: White=0.23 (precise) /Black=0.25 (precise)} 0-1

[Event "Uruguayan Championship 2022"]
[Site "Montevideo"]
[Date "2022.04.13"]
[Round "6.2"]
[White "Vaz Lacuesta, Leonardo"]
[Black "Coppola, Claudio"]
[Result "1-0"]
[ECO "B00"]
[WhiteElo "2018"]
[BlackElo "2285"]
[Annotator "TA"]
[PlyCount "81"]
[EventDate "2022.04.08"]
[EventType "tourn"]
[EventCountry "URU"]
[SourceTitle "playchess.com"]
[Source "ChessBase"]
[SourceQuality "1"]
[TimeControl "40/5400+30:1800+30"]

{[%evp 9,81,44,54,30,42,0,22,9,18,18,54,14,60,22,58,16,51,0,4,0,0,0,0,-2,1,0,0,0,37,-7,-12,0,18,8,5,10,49,50,43,-97,-103,-120,-62,-70,-47,-40,-32,-78,-22,-135,-118,-125,-113,-133,-135,-129,-114,-174,-136,-144,-133,-162,-138,-157,-156,-182,-151,-184,-169,-186,0,0,2099,1972]} 1. e4 {[%emt 0:00:06]} b6 {[%emt 0:00:07]} 2. Nc3 {[%emt 0:02:55]} Bb7 {[%emt 0:00:07]} 3. g3 {[%emt 0:04:23]} g6 {[%emt 0:03:01]} 4. Bg2 {[%emt 0:00:57]} Bg7 {[%emt 0:00:05]} 5. Nge2 {[%emt 0:00:26]} e6 {[%emt 0:01:24]} 6. O-O {[%emt 0:01:45] B00: Queen's Fianchetto Defence, Nimzowitsch Defence.} Ne7 {[%emt 0:00:37]} 7. d3 {[%emt 0:01:33]} d6 {[%emt 0:07:26]} 8. Be3 {[%emt 0:06:17] The position is equal.} Nd7 {[%emt 0:00:22]} 9. Qd2 {[%emt 0:01:32]} h6 {[%emt 0:00:22] [#]} 10. a4 $146 {[%emt 0:12:13]} ({Predecessor:} 10. Rab1 a6 11. a3 Kf8 12. f4 Kg8 13. Qd1 Rb8 14. Bd4 c5 15. Bxg7 Kxg7 16. Qd2 {½-½ (49) Flores Ramirez,X-Goncalves,I Bento Goncalves 2010}) 10... a6 {[%emt 0:00:20]} (10... Ne5 $11) 11. Rab1 {[%emt 0:04:55]} c5 {[%emt 0:07:53]} 12. Rfe1 {[%emt 0:04:51]} Rc8 {[%emt 0:04:46]} 13. f4 {[%emt 0:07:10]} ({Better is} 13. d4 $14) 13... Nc6 {[%emt 0:07:51]} 14. Rf1 {[%emt 0:04:32]} Nd4 {[%emt 0:01:29] Prevents f5.} 15. Nd1 {[%emt 0:00:53]} O-O {[%emt 0:15:48]} 16. Nc1 {[%emt 0:12:32]} f5 {[%emt 0:02:54]} 17. c3 {[%emt 0:03:51]} Nc6 {[%emt 0:00:17]} 18. Nf2 {[%emt 0:02:17]} Nf6 {[%emt 0:04:52]} 19. Ne2 {[%emt 0:13:33]} a5 {[%emt 0:18:59]} 20. d4 {[%emt 0:05:54]} cxd4 {[%emt 0:04:41]} 21. Nxd4 {[%emt 0:01:39]} Nxd4 {[%emt 0:05:34]} 22. Bxd4 {[%emt 0:00:05]} e5 {[%emt 0:02:50]} ({But not} 22... fxe4 23. Bxf6 Rxf6 24. Nxe4 Bxe4 25. Bxe4 $14) 23. Be3 {[%emt 0:00:20]} exf4 {[%emt 0:01:48]} 24. gxf4 {[%emt 0:01:15]} (24. Bxf4 $14 {keeps the upper hand.} fxe4 25. Bxh6) 24... fxe4 $17 {[%emt 0:00:59]} ({Of course not} 24... Nxe4 $6 25. Nxe4 fxe4 26. Bh3 $11) 25. Bh3 {[%emt 0:01:05]} Rb8 {[%emt 0:00:44]} (25... Rc6 $17 26. Be6+ Kh8) 26. Rbd1 {[%emt 0:02:05]} d5 {[%emt 0:01:16]} 27. Ng4 {[%emt 0:01:06]} Nxg4 {[%emt 0:01:09]} 28. Bxg4 {[%emt 0:00:03]} Ba6 {[%emt 0:00:42]} (28... Qe7 $17) 29. Be2 {[%emt 0:01:24]} (29. Rf2 $11 {keeps the balance.}) 29... Bxe2 {[%emt 0:01:42]} 30. Qxe2 {[%emt 0:00:03][%cal Of4f5]} Rf5 {[%emt 0:00:13]} 31. Rf2 {[%emt 0:01:10]} Qe8 {[%emt 0:01:15]} 32. Rg2 {[%emt 0:00:31]} Kh7 {[%emt 0:00:37]} 33. Qc2 {[%emt 0:00:13]} (33. Qb5 $17) 33... b5 {[%emt 0:00:51]} 34. axb5 {[%emt 0:00:14]} Qxb5 {[%emt 0:00:02]} ({Not} 34... Rxb5 35. Kh1 $17) 35. Kh1 {[%emt 0:00:46]} Rc8 {[%emt 0:01:17]} 36. Rdg1 {[%emt 0:00:35]} Rc6 {[%emt 0:00:02][%cal Od5d4] Hoping for ...d4!} 37. Qf2 {[%emt 0:01:39]} Qd3 {[%emt 0:02:37]} 38. Rg3 {[%emt 0:00:07]} Qa6 {[%emt 0:00:48]} 39. Qg2 {[%emt 0:00:07]} Re6 $2 {[%emt 0:00:40]} (39... a4 $19 {aiming for ...a3.} 40. Qh3 Qc8) 40. Qh3 $1 $11 {[%emt 0:00:08][%cal Oh3f5]} Rh5 {[%emt 0:00:42][%mdl 8192] [#]} (40... Bh8 $11) 41. Qxh5 $3 {[%mdl 576] Pin.  Weighted Error Value: White=0.28 (precise) /Black=0.22 (precise)} 1-0

[Event "Uruguayan Championship 2022"]
[Site "Montevideo"]
[Date "2022.04.13"]
[Round "6.3"]
[White "Vazquez, Facundo"]
[Black "Carbone, Diego"]
[Result "1/2-1/2"]
[ECO "D97"]
[WhiteElo "2319"]
[BlackElo "2272"]
[Annotator "TA"]
[PlyCount "71"]
[EventDate "2022.04.08"]
[EventType "tourn"]
[EventCountry "URU"]
[SourceTitle "playchess.com"]
[Source "ChessBase"]
[SourceQuality "1"]
[TimeControl "40/5400+30:1800+30"]

{[%evp 14,71,18,28,24,24,31,33,34,25,31,24,29,18,18,45,52,17,18,8,14,10,8,14,12,11,10,10,10,-166,-158,-169,-171,-154,-140,-181,-171,-160,-63,-63,-63,-63,-63,-63,-54,-54,-54,-54,-54,-54,-47,-54,-47,-54,-54,-54,-54,-54,0,-64]} 1. d4 {[%emt 0:00:02]} Nf6 {[%emt 0:00:08]} 2. c4 {[%emt 0:00:08]} g6 {[%emt 0:00:20]} 3. Nc3 {[%emt 0:00:08]} d5 {[%emt 0:00:28]} 4. Nf3 {[%emt 0:00:08]} Bg7 {[%emt 0:00:16]} 5. Qb3 {[%emt 0:00:08]} dxc4 {[%emt 0:00:33]} 6. Qxc4 {[%emt 0:00:03]} O-O {[%emt 0:00:11]} 7. e4 {[%emt 0:00:05]} Nc6 {[%emt 0:00:51]} 8. Be2 {[%emt 0:00:16]} e5 $1 {[%emt 0:01:52][%cal Re5d4][%mdl 4] is currently scoring better than 8...Bg4. D97: Grünfeld: Russian System: 7 e4, replies other than 7...Bg4.} 9. d5 {[%emt 0:00:08]} (9. Nxe5 Nxd4 10. O-O Nxe4 $1 {[%mdl 512]} 11. Nxe4 Be6 $17) 9... Nd4 {[%emt 0:00:19]} 10. Nxd4 {[%emt 0:00:10]} exd4 {[%emt 0:00:07] White is slightly better.} 11. Qxd4 {[%emt 0:00:08]} c6 $1 {[%emt 0:00:37][%cal Of6d5]} 12. Qc4 {[%emt 0:00:09]} b5 {[%emt 0:00:58]} 13. Qxc6 {[%emt 0:00:10]} Bd7 {[%emt 0:00:12][%cal Bc8d7,Bd7e6,Be6c4][%mdl 32]} 14. Qd6 {[%emt 0:00:10]} Re8 {[%emt 0:00:32]} 15. e5 {[%emt 0:01:09]} Ng4 {[%emt 0:02:31]} 16. e6 {[%emt 0:02:08]} fxe6 {[%emt 0:00:07]} 17. h3 {[%emt 0:01:27]} ({Don't play} 17. Bxg4 exd5+ 18. Be2 Bxc3+ 19. bxc3 {[#]} Rxe2+ $1 20. Kf1 Re8 $15) ({Not} 17. Nxb5 $2 Be5 $1 18. Qa6 exd5 19. Bxg4 Bxb2+ 20. Be3 Bxa1 $19) 17... Ne5 {[%emt 0:00:49][%cal Bg4e5,Be5d3,Bd3b2][%mdl 32]} 18. dxe6 {[%emt 0:01:42]} Bxe6 {[%emt 0:00:08]} 19. Qxd8 {[%emt 0:01:00]} ({Much worse is} 19. Nxb5 Bc4 20. Qxd8 Raxd8 $17) 19... Raxd8 {[%emt 0:00:07]} 20. Bxb5 {[%emt 0:01:18]} Bc4 $1 {[%emt 0:00:44][%cal Re5f3] [#]} 21. Be3 $146 {[%emt 0:11:15]} (21. Bxe8 $11 {and White stays safe.} Nd3+ 22. Ke2 Rxe8+ 23. Be3) ({Predecessor:} 21. Bxe8 Nd3+ 22. Kf1 Bxc3 23. bxc3 Nxc1+ 24. Kg1 Ne2+ 25. Kh2 Rxe8 26. Rhe1 Bf7 27. c4 Bxc4 {½-½ (36) Yu,Y (2763)-Vachier Lagrave,M (2774) Khanty-Mansiysk 2019}) 21... Nd3+ $19 {[%emt 0:12:29]} 22. Ke2 {[%emt 0:06:48]} Nxb2+ {[%emt 0:15:41][%mdl 64] Discovered Attack} 23. Bxc4+ {[%emt 0:00:09]} Nxc4 {[%emt 0:00:06]} 24. Rac1 {[%emt 0:01:17][%cal Oc3d5]} Rd2+ {[%emt 0:04:18]} 25. Ke1 {[%emt 0:00:22]} Bxc3 {[%emt 0:17:31]} (25... Rb2 $17 26. Nd5 Nxe3 27. fxe3 Rxa2) 26. Rxc3 $15 {[%emt 0:00:07] [#]} Rxa2 $1 {[%emt 0:00:16]} 27. Rxc4 {[%emt 0:00:18] Hoping for Rd4.} Ra1+ {[%emt 0:00:07]} 28. Kd2 {[%emt 0:00:07]} Rd8+ {[%emt 0:01:58]} 29. Ke2 $1 {[%emt 0:00:24]} Rxh1 {[%emt 0:00:06]} 30. Bxa7 {[%emt 0:00:07][%mdl 4096] Endgame KRR-KRB} Rhd1 {[%emt 0:05:18]} 31. Be3 {[%emt 0:00:34]} R1d5 {[%emt 0:01:33]} 32. h4 {[%emt 0:02:51]} Kg7 {[%emt 0:02:08]} 33. g3 {[%emt 0:01:14]} R8d7 {[%emt 0:00:22]} 34. Kf3 {[%emt 0:02:11]} Rf5+ {[%emt 0:01:59]} 35. Kg2 {[%emt 0:00:40]} Rfd5 {[%emt 0:00:07]} 36. Kf3 $1 {[%emt 0:00:09] Weighted Error Value: White=0.12 (very precise) /Black=0.06 (flawless)} 1/2-1/2

[Event "Uruguayan Championship 2022"]
[Site "Montevideo"]
[Date "2022.04.13"]
[Round "6.4"]
[White "Carvalho, Guillermo"]
[Black "Roselli Mailhe, Bernardo"]
[Result "1/2-1/2"]
[ECO "A10"]
[WhiteElo "2171"]
[BlackElo "2426"]
[Annotator "TA"]
[PlyCount "63"]
[EventDate "2022.04.08"]
[EventType "tourn"]
[EventCountry "URU"]
[SourceTitle "playchess.com"]
[Source "ChessBase"]
[SourceQuality "1"]
[TimeControl "40/5400+30:1800+30"]

{[%evp 19,63,0,0,0,19,29,15,17,21,19,21,18,10,10,12,25,24,15,28,10,16,23,30,0,13,12,26,21,74,70,121,103,106,121,122,114,111,57,69,27,106,108,111,92,102,108]} 1. c4 {[%emt 0:00:05]} g6 {[%emt 0:00:19]} 2. Nc3 {[%emt 0:00:09]} Bg7 {[%emt 0:00:06]} 3. g3 {[%emt 0:00:06]} d6 {[%emt 0:00:28]} 4. Bg2 {[%emt 0:00:09]} e5 {[%emt 0:00:18]} 5. e4 {[%emt 0:00:32]} Nf6 {[%emt 0:02:09]} 6. Nge2 {[%emt 0:00:35]} O-O {[%emt 0:00:33]} 7. d3 {[%emt 0:02:59]} c6 {[%emt 0:00:51]} 8. O-O {[%emt 0:00:51]} a6 {[%emt 0:00:29]} 9. a4 {[%emt 0:02:21]} a5 {[%emt 0:00:40]} 10. h3 {[%emt 0:00:22]} Na6 {[%emt 0:06:01]} 11. Be3 {[%emt 0:01:20] A24: English Opening vs King's Indian: Lines without ...Nc6.} Nc5 {[%emt 0:13:15] [#]} 12. Qc2 $146 {[%emt 0:11:37]} ({Predecessor:} 12. f4 Nfd7 13. f5 Qb6 14. Rb1 Qb3 15. Qd2 Ra6 16. g4 Nxa4 17. Nc1 Qb4 18. N1a2 Qb3 {1-0 (54) Rakhmanov,A (2654)-Paunovic,D (2439) Llucmajor 2016}) 12... Qe7 {[%emt 0:10:09]} 13. Rad1 {[%emt 0:02:17] The position is equal.} Ne8 {[%emt 0:07:29]} 14. Rfe1 {[%emt 0:04:26]} Nc7 {[%emt 0:06:43]} 15. d4 {[%emt 0:11:11]} exd4 {[%emt 0:00:30]} 16. Bxd4 {[%emt 0:00:12]} Be6 {[%emt 0:12:32]} 17. Bxg7 {[%emt 0:01:05]} Kxg7 {[%emt 0:00:09]} 18. b3 {[%emt 0:01:06]} Rad8 {[%emt 0:00:37]} 19. f4 {[%emt 0:07:13]} Bc8 {[%emt 0:04:44]} 20. Nd4 {[%emt 0:04:03]} (20. Qd2 {seems wilder.} N7a6 21. Na2 Qc7 22. Nd4) 20... Rfe8 {[%emt 0:04:28]} 21. Re2 {[%emt 0:02:19]} Kg8 {[%emt 0:03:46]} 22. Qd2 {[%emt 0:09:21]} Qf6 {[%emt 0:03:54]} 23. Re3 {[%emt 0:04:23]} N7e6 {[%emt 0:01:57]} (23... Qe7 $11 {keeps the balance.}) 24. Nce2 $16 {[%emt 0:00:42]} h5 {[%emt 0:03:29]} (24... Nxd4 $14 25. Nxd4 g5) 25. Qxa5 {[%emt 0:07:32]} Nxd4 {[%emt 0:08:18]} 26. Rxd4 {[%emt 0:06:18]} Ne6 {[%emt 0:00:11]} 27. Rd1 {[%emt 0:01:01]} h4 {[%emt 0:00:15]} 28. Qc3 {[%emt 0:00:51] &Bianco is more active.} (28. Qd2 $16) 28... Qxc3 $14 {[%emt 0:01:04]} 29. Rxc3 {[%emt 0:00:22]} (29. Nxc3 $5 {[%cal Rf4f5]} hxg3 30. Ne2 $16) 29... hxg3 {[%emt 0:01:07]} (29... Nc5 $11) 30. b4 {[%emt 0:02:49] White is better.} ({Don't do} 30. Rxg3 Nc5 $14) 30... Kf8 {[%emt 0:03:06]} 31. Rxg3 {[%emt 0:00:30]} Ke7 {[%emt 0:00:41]} 32. a5 {[%emt 0:02:05] Weighted Error Value: White=0.09 (flawless) /Black=0.16 (very precise)} 1/2-1/2

[Event "Uruguayan Championship 2022"]
[Site "Montevideo"]
[Date "2022.04.13"]
[Round "6.5"]
[White "Granara Barreto, Sebastian"]
[Black "Lopez Azambuja, Nicolas"]
[Result "1-0"]
[ECO "C15"]
[WhiteElo "2131"]
[BlackElo "2318"]
[Annotator "TA"]
[PlyCount "61"]
[EventDate "2022.04.08"]
[EventType "tourn"]
[EventCountry "URU"]
[SourceTitle "playchess.com"]
[Source "ChessBase"]
[SourceQuality "1"]
[TimeControl "40/5400+30:1800+30"]

{[%evp 11,61,18,18,6,23,25,25,10,11,4,22,18,35,22,29,35,65,75,74,68,93,29,60,77,98,124,97,112,104,34,34,36,30,44,129,96,155,136,169,177,220,214,277,229,245,201,285,281,29996,29997,29998,29999]} 1. e4 {[%emt 0:00:03][%cal Be2e4,Be4e5][%mdl 32]} e6 {[%emt 0:00:12]} 2. d4 {[%emt 0:00:13]} d5 {[%emt 0:00:42]} 3. Nc3 {[%emt 0:00:10]} Bb4 {[%emt 0:00:11]} 4. Nge2 {[%emt 0:00:08]} Nf6 {[%emt 0:00:25]} 5. e5 {[%emt 0:00:14]} Nfd7 {[%emt 0:00:21]} 6. a3 {[%emt 0:00:13]} Be7 {[%emt 0:00:07]} 7. Be3 {[%emt 0:02:25] C15: French: 3 Nc3 Bb4: Unusual White 4th moves.} a6 {[%emt 0:01:19]} 8. f4 {[%emt 0:01:47][%cal Of4f5]} c5 {[%emt 0:01:03]} 9. Qd2 {[%emt 0:04:21] White has an edge.} Nc6 {[%emt 0:00:20]} 10. dxc5 {[%emt 0:02:46]} Nxc5 {[%emt 0:06:57]} 11. Nd4 {[%emt 0:01:18]} Qc7 {[%emt 0:03:30] [#]} 12. b4 $146 {[%emt 0:23:30]} ({Predecessor:} 12. g3 Bd7 13. Bg2 f6 14. exf6 gxf6 15. O-O f5 16. Nxf5 exf5 17. Nxd5 Qd6 18. Qc3 {1-0 (27) Mikaelyan,A (2483)-Mammadova,G (2382) Chess.com INT 2020}) 12... Nd7 {[%emt 0:03:13]} 13. Bd3 {[%emt 0:12:37]} Nxd4 {[%emt 0:13:12]} 14. Bxd4 {[%emt 0:00:09]} Nb6 {[%emt 0:00:24]} 15. O-O {[%emt 0:02:09]} Bd7 {[%emt 0:08:09]} 16. Nd1 {[%emt 0:07:32]} (16. f5 $16) 16... a5 {[%emt 0:06:39]} 17. Ne3 {[%emt 0:00:51]} axb4 {[%emt 0:12:03]} 18. axb4 {[%emt 0:03:39] aiming for Bxb6.} Rxa1 {[%emt 0:00:20]} 19. Rxa1 {[%emt 0:00:08]} O-O {[%emt 0:00:19]} 20. Rf1 {[%emt 0:12:06]} (20. Ng4 $16) 20... Nc4 $14 {[%emt 0:04:03]} 21. Bxc4 {[%emt 0:05:16]} dxc4 {[%emt 0:01:08]} 22. f5 {[%emt 0:00:08][%cal Bf4f5,Bf5f6][%mdl 32]} Bg5 {[%emt 0:03:42]} ({Black should play} 22... f6 $14) 23. f6 $1 $16 {[%emt 0:08:48][%cal Oh2h4] Hoping for h4!} g6 {[%emt 0:12:43]} ({Better is} 23... Bc6) 24. Qf2 {[%emt 0:01:39] &Bianco is more active.} Kh8 {[%emt 0:01:11] [#]} 25. Ng4 $1 {[%emt 0:00:54] Threatens to win with h4.} c3 {[%emt 0:01:06]} 26. Be3 {[%emt 0:03:36]} Bxe3 {[%emt 0:00:44]} 27. Qxe3 {[%emt 0:00:03]} Ba4 {[%emt 0:05:12]} 28. Rf3 $40 {[%emt 0:05:56][%mdl 128] Qh6 would kill now. White wants a kill.} Qd8 {[%emt 0:03:37] [#]} (28... Qd7 $142 29. Nf2 (29. Qxc3 Rc8 $16) (29. Qh6 Qd1+ 30. Rf1 Qd4+ 31. Ne3 Rg8 $16) 29... Rg8) 29. Nf2 $1 $18 {[%emt 0:01:13] White threatens Qh6 and mate.} ({Weaker is} 29. Qxc3 Qd1+ 30. Kf2 Bc6 $16) 29... Bxc2 $2 {[%emt 0:02:13]} ({Less strong is} 29... Qd2 30. Ne4 Qxe3+ 31. Rxe3 $16) (29... g5 $18 30. Qxc3 (30. Qxg5 Rg8 $16) 30... Qb6) 30. Qh6 {[%emt 0:00:40][%csl Gf6][%cal Rh6g7]} Rg8 {[%emt 0:00:08] [#]} 31. Qxh7+ $1 {[%emt 0:00:06][%mdl 576] Decoy.  Weighted Error Value: White=0.07 (flawless) /Black=0.49} 1-0